bitfinex-derivatives/quotes_ETHF0:USTF0_20240904
["timestamp","ask_amount","ask_price","bid_price","bid_amount"]
[1725411745880,6.12,2354.0,2351.6,13.01636917]
[1725411745881,3.2078,2352.6,2351.6,4.252]
[1725411746086,3.2078,2352.6,2352.2,0.42519]
[1725411746087,1.3672,2352.6,2352.2,0.42519]
[1725411746381,1.65184646,2353.8,2353.7,0.42492]
[1725411746585,1.65184646,2353.8,2352.1,1.06299]
[1725411746586,3.2078,2353.8,2352.4,3.2078]
[1725411746779,3.2078,2353.8,2351.8,3.2078]
[1725411746780,3.2078,2353.0,2351.8,3.2078]
[1725411746974,0.00636699,2353.3,2352.2,3.2078]
[1725411747178,9.41966073,2358.7,2351.8,6.0]
[1725411747179,3.2078,2355.1,2353.2,3.2078]
[1725411747377,6.12,2355.5,2352.7,3.2078]
[1725411747577,3.2078,2354.0,2352.3,3.2078]
[1725411747889,4.5709524,2354.2,2352.3,3.2078]
[1725411747890,3.2078,2355.1,2354.5,0.42476]
[1725411748090,6.12,2356.4,2354.5,3.2078]
[1725411748091,3.2078,2356.0,2354.5,3.2078]
[1725411748382,40.8,2356.4,2354.4,0.4248]
[1725411748383,1.38246004,2356.4,2355.9,0.42452]
[1725411748579,1.38246004,2356.4,2355.8,3.2078]
[1725411748781,1.38246004,2356.4,2354.6,0.00636699]
[1725411748782,4.54034328,2355.9,2354.6,0.00636699]
[1725411748979,4.61303494,2356.3,2355.2,3.2078]
[1725411749287,3.2078,2355.7,2354.6,3.2078]
[1725411749479,40.8,2356.2,2355.0,0.00636699]
[1725411749480,3.2078,2355.9,2355.0,0.00636699]
[1725411749678,3.2078,2354.7,2352.4,3.2078]
[1725411749987,3.2078,2353.5,2352.1,3.2078]
[1725411750185,6.12,2354.5,2353.1,3.2078]
[1725411750377,6.12,2354.5,2350.3,1.7119]
[1725411750378,0.01833478,2353.4,2351.9,3.2078]
[1725411750573,4.54031245,2353.7,2352.5,3.2078]
[1725411750782,4.74810407,2354.4,2352.5,3.2078]
[1725411750783,0.06170055,2354.5,2353.6,0.42494]
[1725411750976,0.06170055,2354.5,2352.6,0.4256]
[1725411750977,4.74810407,2353.9,2352.6,0.4256]
[1725411751177,3.2078,2354.0,2352.7,3.2078]
[1725411751489,3.2078,2352.8,2351.1,3.2078]
[1725411751785,6.12,2351.2,2348.3,0.9372]
[1725411751984,11.0126755,2351.2,2348.3,0.9372]
[1725411752185,6.12,2352.0,2348.8,3.2078]
[1725411752377,6.12,2352.0,2349.6,0.42565]
[1725411752378,3.51,2351.1,2349.6,0.42565]
[1725411752577,0.00638067,2350.0,2349.5,3.21418067]
[1725411752778,0.00638067,2350.0,2347.6,1.06505]
[1725411752779,3.2078,2349.8,2348.1,3.2078]
[1725411752979,3.2078,2349.8,2347.8,0.4256]
[1725411752980,6.7e-07,2350.0,2349.8,0.42563]
[1725411753185,3.2078,2352.3,2349.7,3.2078]
[1725411753392,3.2078,2352.7,2350.8,3.2078]
[1725411753682,3.2078,2352.7,2349.9,3.91799794]
[1725411753683,3.2078,2351.3,2349.9,0.42559]
[1725411753891,3.2078,2351.4,2350.5,0.4255]
[1725411754079,3.2078,2350.9,2349.7,3.2078]
[1725411754276,3.2078,2350.8,2349.0,3.2078]
[1725411754474,3.55947598,2351.3,2349.0,3.2078]
[1725411754475,9.3278,2351.0,2349.0,3.2078]
[1725411754678,3.2078,2349.1,2347.5,3.2078]
[1725411754878,3.2078,2349.4,2347.5,3.2078]
[1725411755180,3.2078,2348.6,2346.7,3.2078]
[1725411755382,3.2078,2347.2,2346.1,3.2078]
[1725411755581,0.42623,2346.5,2346.0,0.0202]
[1725411755777,6.12,2346.9,2344.8,3.2078]
[1725411755778,3.2078,2346.2,2344.8,3.2078]
[1725411755981,3.2078,2346.2,2344.0,0.42666]
[1725411755982,0.2511295,2346.4,2344.5,3.2078]
[1725411756189,4.37959684,2346.8,2345.7,3.2078]
[1725411756390,3.2078,2345.9,2343.8,7.25090187]
[1725411756582,3.2078,2345.7,2343.8,3.2078]
[1725411756778,0.00639495,2346.5,2345.2,3.2078]
[1725411756984,3.2078,2347.5,2345.8,3.2078]
[1725411757185,6.12,2348.8,2346.7,3.2078]
[1725411757487,6.12,2348.8,2345.8,1.49225]
[1725411757488,4.84902415,2347.9,2345.9,8.72047043]
[1725411757679,3.13455415,2347.9,2347.8,3.63379]
[1725411757881,3.2078,2349.6,2347.9,0.42596]
[1725411758081,6.12,2352.0,2350.8,0.42543]
[1725411758285,6.12,2352.0,2348.0,0.4264]
[1725411758286,1.59282813,2350.5,2350.3,3.2078]
[1725411758676,11.2789455,2352.0,2350.4,4.2544]
[1725411758677,0.00637836,2351.6,2350.4,4.2544]
[1725411758884,3.2078,2353.0,2351.5,3.2078]
[1725411759088,0.61776649,2352.2,2351.8,3.2078]
[1725411759284,0.53415191,2352.9,2352.0,0.42522]
[1725411759480,3.2078,2354.6,2352.7,3.2078]
[1725411759681,3.2078,2355.1,2353.6,3.2078]
[1725411759878,3.2078,2355.1,2352.5,3.2078]
[1725411759879,3.2078,2353.7,2352.5,3.2078]
[1725411760082,3.2078,2352.6,2351.3,3.2078]
[1725411760292,15.03153477,2355.0,2351.7,3.2078]
[1725411760293,3.2078,2353.3,2351.7,3.2078]
[1725411760486,4.02601781,2353.6,2352.4,0.42515]
[1725411760790,3.2078,2354.0,2352.1,3.2078]
[1725411760989,11.00738335,2353.5,2352.3,0.00637836]
[1725411761192,3.2078,2352.4,2350.5,3.2078]
[1725411761384,3.2078,2350.8,2349.7,3.2078]
[1725411761692,3.2078,2350.8,2346.4,21.7695]
[1725411761693,6.12,2350.3,2349.0,3.2078]
[1725411761988,3.2078,2351.5,2349.6,3.63345]
[1725411762196,6.12,2351.9,2348.9,0.4256]
[1725411762197,3.2078,2351.6,2350.0,3.2078]
[1725411762392,3.48605758,2351.4,2350.5,3.2078]
[1725411762589,3.48605758,2351.4,2350.0,6.0]
[1725411762590,5.1589455,2351.9,2351.2,3.2078]
[1725411762888,0.00637836,2351.2,2351.1,3.2078]
[1725411763091,8.36e-06,2351.2,2351.1,3.63319]
[1725411763285,8.36e-06,2351.2,2351.1,3.2078]
[1725411763489,8.36e-06,2351.2,2351.1,13.88679]
[1725411763789,8.36e-06,2351.2,2350.3,0.00637836]
[1725411763790,19.84957687,2351.2,2350.3,0.00637836]
[1725411763991,5.15895386,2351.2,2350.3,0.00637836]
[1725411764204,3.2078,2351.0,2350.3,0.00637836]
[1725411764383,0.42556,2350.2,2347.9,3.2078]
[1725411764582,0.42556,2350.2,2345.6,6.12]
[1725411764583,3.2078,2349.1,2347.4,3.2078]
[1725411764783,3.2078,2348.6,2346.7,3.2078]
[1725411764983,3.2078,2348.6,2344.4,1.06652]
[1725411764984,6.12,2347.1,2346.2,3.2078]
[1725411765193,6.12,2347.1,2343.2,1.731]
[1725411765194,3.2078,2346.3,2345.3,3.2078]
[1725411765494,6.12,2346.8,2345.3,3.2078]
[1725411765495,3.2078,2346.0,2345.3,3.2078]
[1725411765694,10.264,2345.4,2343.8,3.2078]
[1725411765899,0.42672,2343.8,2342.5,3.2078]
[1725411766090,3.2078,2342.6,2340.8,3.2078]
[1725411766395,6.12,2342.1,2340.8,2.9978]
[1725411766598,6.12,2342.1,2340.0,0.6272]
[1725411766599,4.55054389,2342.5,2340.0,0.2]
[1725411766784,4.55054389,2342.5,2338.2,6.36841651]
[1725411766785,6.12,2340.4,2339.0,3.2078]
[1725411766989,6.12,2340.4,2338.2,6.36841651]
[1725411766990,3.2078,2339.5,2338.2,5.08421651]
[1725411767285,3.2078,2340.0,2337.8,0.428]
[1725411767486,3.2078,2337.9,2336.8,8.89788118]
[1725411767791,6.12,2338.9,2338.6,0.00640629]
[1725411767991,40.8,2338.7,2336.8,5.69008118]
[1725411768288,4.2784,2337.7,2336.8,5.69008118]
[1725411768492,6.12,2337.7,2336.8,5.69008118]
[1725411768707,6.12,2337.7,2333.8,5.20497181]
[1725411768708,3.2078,2335.1,2334.8,13.16659008]
[1725411768997,2.08313,2336.1,2334.9,0.4288]
[1725411769290,40.8,2339.6,2335.8,4.27822]
[1725411769501,4.78701641,2336.0,2331.4,20.794]
[1725411769686,10.59842865,2338.5,2336.0,3.2078]
[1725411769887,0.34130118,2339.5,2338.3,3.2078]
[1725411770086,0.214,2342.3,2335.9,9.1763335]
[1725411770087,3.2078,2341.7,2339.2,3.2078]
[1725411770286,3.2078,2340.8,2336.7,6.12]
[1725411770487,4.80206444,2340.3,2337.6,3.2078]
[1725411770690,1.71076444,2340.3,2339.3,3.2078]
[1725411770993,6.12,2342.3,2340.2,3.2078]
[1725411770994,3.2078,2342.3,2340.2,3.2078]
[1725411771188,3.2078,2342.3,2338.9,0.02479854]
[1725411771189,3.02076444,2343.7,2341.3,3.2078]
[1725411771392,0.42622,2346.6,2341.7,3.2078]
[1725411771684,0.42622,2346.6,2341.4,4.2688]
[1725411771685,0.58466931,2345.7,2343.6,9.3278]
[1725411771886,5.78622893,2346.2,2345.5,3.2078]
[1725411772083,4.86677862,2345.6,2345.5,3.2078]
[1725411772395,9.63508444,2345.6,2345.5,0.0495985]
[1725411772594,9.63508444,2345.6,2342.9,9.2835265]
[1725411772595,5.78622893,2345.6,2344.9,3.2078]
[1725411772895,1.50537862,2345.6,2345.5,3.2078]
[1725411773090,3.2078,2347.6,2345.5,3.2078]
[1725411773394,4.72988898,2347.6,2345.9,3.2078]
[1725411773594,4.72988898,2347.6,2345.5,6.0]
[1725411773801,4.72988898,2347.6,2345.5,3.2078]
[1725411773802,3.2078,2346.1,2345.5,3.2078]
[1725411774096,3.2078,2346.1,2341.4,0.44562538]
[1725411774097,3.2078,2344.7,2342.9,3.2078]
[1725411774282,3.2078,2344.2,2343.0,3.2078]
[1725411774489,3.2078,2343.1,2342.0,11.90636969]
[1725411774691,3.2078,2343.5,2342.0,3.2078]
[1725411774898,4.86083929,2344.1,2342.1,0.4272]
[1725411775202,3.18300004,2342.9,2342.3,0.00640437]
[1725411775387,3.18300004,2342.9,2341.4,0.44562538]
[1725411775388,3.2078,2342.3,2341.4,0.44562538]
[1725411775699,5.04e-06,2342.2,2341.4,6.0]
[1725411775992,0.00640437,2343.3,2340.7,0.4272]
[1725411775993,4.37e-06,2343.3,2342.7,0.42692]
[1725411776197,3.2078,2345.2,2342.3,3.2078]
[1725411776386,3.2078,2345.2,2339.9,2.13707]
[1725411776387,3.2078,2345.7,2343.9,3.2078]
[1725411776587,6.12,2347.0,2344.2,3.2078]
[1725411776588,4.47681441,2346.4,2344.2,3.2078]
[1725411776788,4.47681441,2346.4,2343.8,0.4264]
[1725411776789,2.18622,2346.4,2345.5,3.2078]
[1725411776991,3.41945229,2347.2,2345.9,0.02479996]
[1725411777185,4.5997642,2346.3,2345.9,0.02479996]
[1725411777488,3.2078,2345.7,2343.8,3.2078]
[1725411777786,3.2078,2345.8,2343.8,9.2078]
[1725411778099,6.12,2347.1,2344.1,3.2078]
[1725411778288,3.2078,2345.6,2343.7,3.2078]
[1725411778488,3.2078,2345.9,2343.8,3.2078]
[1725411778704,6.12,2347.1,2343.8,3.2078]
[1725411778705,3.2078,2347.1,2345.5,3.2078]
[1725411778893,4.37e-06,2344.9,2344.8,3.2078]
[1725411779098,3.2078,2342.8,2340.3,3.2078]
[1725411779289,3.2078,2342.4,2340.1,3.2078]
[1725411779491,4.59009393,2342.7,2341.4,3.2078]
[1725411779794,4.59009393,2342.7,2340.6,1.06822]
[1725411779795,3.2078,2343.3,2342.3,0.42698]
[1725411779999,4.59009393,2343.2,2342.0,3.2078]
[1725411780201,4.59009393,2343.2,2342.0,6.0]
[1725411780202,0.00640437,2342.3,2342.0,6.0]
[1725411780494,3.2078,2344.6,2342.2,3.2078]
[1725411780691,27.75858178,2348.7,2342.2,3.2078]
[1725411780692,3.2078,2345.8,2343.6,3.2078]
[1725411780887,3.2078,2345.8,2342.1,0.45199996]
[1725411780888,6.12,2345.6,2342.3,8.83285328]
[1725411781098,2.27733419,2342.7,2342.1,0.02479996]
[1725411781294,2.27733419,2342.2,2342.1,0.02479996]
[1725411781496,4.48087179,2342.6,2341.8,3.2078]
[1725411781697,4.48087179,2342.6,2342.5,3.2078]
[1725411781698,4.37e-06,2342.6,2342.5,3.2078]
[1725411781998,1.06563,2346.4,2342.2,0.00640437]
[1725411781999,3.2078,2346.1,2343.4,3.2078]
[1725411782197,3.2078,2345.7,2344.3,3.2078]
[1725411782404,11.17845614,2346.7,2345.1,3.2078]
[1725411782594,6.12,2348.2,2344.6,1.06642]
[1725411782595,7.97065614,2346.9,2345.7,3.2078]
[1725411782790,7.97065614,2346.1,2345.8,3.2078]
[1725411782990,7.94585618,2345.4,2344.4,3.2078]
[1725411783197,7.94585618,2345.3,2344.4,3.2078]
[1725411783496,4.5169238,2345.3,2344.3,0.42662]
[1725411783689,3.3169238,2345.3,2344.7,0.00640437]
[1725411783892,3.2078,2345.2,2344.7,0.00640437]
[1725411784092,9.3278,2344.9,2342.7,3.2078]
[1725411784293,7.94585618,2342.9,2341.0,0.4272]
[1725411784494,7.94585618,2341.1,2341.0,3.2078]
[1725411784698,7.94585618,2341.3,2340.8,3.2078]
[1725411784895,3.2078,2343.1,2340.7,3.2078]
[1725411785097,1.06639,2344.8,2342.8,3.2078]
[1725411785098,3.2078,2344.8,2342.8,3.2078]
[1725411785300,0.20869297,2345.1,2343.7,3.2078]
[1725411785494,0.00640437,2342.1,2341.9,0.42706]
[1725411785699,0.00640437,2342.1,2341.7,0.00640437]
[1725411785700,3.2078,2344.0,2342.0,3.2078]
[1725411785907,3.2078,2345.3,2343.1,3.2078]
[1725411786199,3.28256119,2343.9,2343.1,3.2078]
[1725411786402,7.94585618,2343.6,2343.3,3.2078]
[1725411786601,0.42679,2343.4,2343.3,0.61501437]
[1725411786902,3.2078,2343.2,2340.8,3.2078]
[1725411787109,6.12,2343.4,2340.2,3.2078]
[1725411787110,3.2078,2341.6,2340.2,3.2078]
[1725411787308,10.53860416,2343.4,2341.9,0.00640437]
[1725411787309,2.24458,2342.5,2341.9,0.00640437]
[1725411787607,0.214,2347.3,2341.9,0.00640437]
[1725411787608,3.2078,2344.7,2342.4,3.2078]
[1725411787797,4.68477265,2342.4,2341.0,3.2078]
[1725411787997,4.68477265,2342.4,2340.1,0.4272]
[1725411787998,7.12172446,2342.3,2341.3,3.2078]
[1725411788191,14.01257265,2343.3,2341.3,3.2078]
[1725411788192,7.89257265,2343.3,2341.6,3.2078]
[1725411788403,3.2078,2341.7,2341.1,1.6808804]
[1725411788597,3.2078,2341.7,2336.4,0.66695626]
[1725411788598,3.2078,2341.2,2337.8,3.2078]
[1725411788800,3.2078,2340.1,2338.2,3.2078]
[1725411789193,4.71964036,2341.1,2338.3,9.37869859]
[1725411789396,6.12,2342.9,2340.7,3.2078]
[1725411789397,0.42708,2341.8,2340.7,3.2078]
[1725411789595,0.42707,2341.9,2340.7,3.2078]
[1725411789797,4.73875669,2341.7,2339.3,0.00640437]
[1725411790001,3.2078,2340.6,2339.5,3.2078]
[1725411790304,0.21472471,2341.8,2337.6,3.2078]
[1725411790305,3.2078,2339.9,2337.6,3.2078]
[1725411790605,46.92,2340.5,2335.4,8.26125]
[1725411790606,3.2078,2339.1,2336.9,3.2078]
[1725411790805,48.90126172,2340.5,2336.9,3.2078]
[1725411790806,3.2078,2338.7,2336.9,3.2078]
[1725411791113,1.06998,2336.9,2335.3,3.2078]
[1725411791400,6.12,2337.0,2333.8,5.20497181]
[1725411791401,0.42817,2335.9,2334.9,3.2078]
[1725411791603,6.12,2336.1,2334.9,0.3667]
[1725411791809,3.2078,2334.8,2332.0,0.9324]
[1725411791999,1.07125,2334.1,2332.0,0.7224]
[1725411792201,6.12,2333.0,2332.1,8.91834248]
[1725411792405,0.42871,2332.9,2332.0,0.7224]
[1725411792607,0.42891,2331.8,2330.8,6.29445377]
[1725411792903,3.2078,2332.8,2328.9,3.2078]
[1725411792904,6.19,2330.9,2328.9,3.2078]
[1725411793112,20.06635748,2331.7,2330.4,3.2078]
[1725411793295,3.2078,2331.7,2329.6,0.4296]
[1725411793500,3.2078,2331.7,2328.6,0.25999576]
[1725411793501,0.00643266,2330.1,2329.7,0.00643266]
[1725411793701,6.19,2330.0,2327.8,3.15031185]
[1725411793899,6.19,2330.0,2328.3,11.53569118]
[1725411793900,15.69931555,2330.0,2328.3,11.53569118]
[1725411794104,3.2078,2330.5,2327.9,8.98199766]
[1725411794312,6.19,2329.9,2327.9,8.98199766]
[1725411794513,6.19,2329.9,2327.2,13.38488506]
[1725411794514,3.2078,2327.7,2327.2,0.00351765]
[1725411794701,6.19,2327.3,2325.6,3.2078]
[1725411794904,18.86291851,2327.6,2325.7,13.38488506]
[1725411795104,18.86291851,2327.6,2325.7,8.97874058]
[1725411795105,6.19,2326.3,2325.7,8.97874058]
[1725411795312,6.19,2326.3,2322.7,3.2078]
[1725411795313,3.2078,2324.4,2322.7,3.2078]
[1725411795502,3.2078,2324.4,2321.7,6.59593791]
[1725411795503,10.99022441,2326.2,2322.8,13.57619002]
[1725411795702,15.5284095,2327.5,2326.1,5.31111614]
[1725411795703,0.22415364,2327.5,2326.1,5.31111614]
[1725411795904,1.5726,2332.2,2325.3,3.2078]
[1725411795905,4.72205579,2327.1,2325.3,3.2078]
[1725411796112,1.5603,2337.7,2326.3,0.42992]
[1725411796113,4.53175243,2327.4,2326.3,0.42992]
[1725411796302,1.0728,2330.7,2326.3,0.42992]
[1725411796303,4.47401635,2329.1,2328.1,0.42959]
[1725411796503,3.2078,2330.7,2328.0,6.19]
[1725411796706,3.2078,2330.7,2328.4,3.2078]
[1725411796910,1.85547726,2330.4,2328.2,8.99778948]
[1725411797105,3.56597635,2330.6,2329.1,0.00644648]
[1725411797311,0.42843,2334.5,2332.1,0.42885]
[1725411797511,1.15254916,2334.7,2332.9,0.42869]
[1725411797704,1.76e-06,2336.3,2334.2,1.07117]
[1725411798009,3.69572,2341.9,2334.3,2.13068605]
[1725411798010,4.54875527,2336.2,2334.3,2.13068605]
[1725411798210,4.54875527,2336.2,2334.3,2.13711843]
[1725411798513,0.00643238,2336.7,2335.7,3.2078]
[1725411798709,1.28252861,2340.8,2336.3,3.2078]
[1725411798710,6.19,2339.3,2336.3,3.2078]
[1725411798905,0.21434861,2340.8,2336.3,3.2078]
[1725411798906,3.36544106,2336.6,2336.3,3.2078]
[1725411799105,4.61951106,2338.5,2336.3,3.2078]
[1725411799310,6.19,2338.2,2337.4,3.2078]
[1725411799505,4.7598228,2338.2,2336.4,3.2078]
[1725411799716,0.22928388,2338.4,2337.5,0.42786]
[1725411799911,3.2078,2339.8,2337.0,3.2078]
[1725411800219,0.35073169,2338.1,2337.5,3.2078]
[1725411800415,3.2078,2337.6,2335.8,3.2078]
[1725411800713,6.19,2337.8,2335.4,3.2078]
[1725411800911,6.19,2337.8,2335.6,3.2078]
[1725411800912,2.0078,2336.8,2335.6,3.2078]
[1725411801119,6.19,2336.1,2335.8,2.8634868]
[1725411801322,3.36258168,2336.7,2335.0,3.2078]
[1725411801508,9.3978,2339.5,2335.9,1.07037]
[1725411801710,0.49909488,2338.4,2336.0,0.428]
[1725411801917,6.19,2340.4,2338.3,3.2078]
[1725411801918,0.49909488,2338.5,2338.3,3.2078]
[1725411802108,0.49909488,2338.5,2336.0,0.428]
[1725411802109,0.49909488,2338.0,2337.9,3.2078]
[1725411802307,0.49909488,2339.1,2337.9,3.2078]
[1725411802512,16.6540947,2340.3,2339.0,3.2078]
[1725411802513,4.78376466,2340.0,2339.0,3.2078]
[1725411802817,0.49909488,2340.0,2339.9,3.2078]
[1725411803014,9.3978,2341.2,2336.3,9.19945564]
[1725411803015,4.78376466,2339.9,2339.4,3.2078]
[1725411803213,4.78376466,2339.9,2338.3,0.00641849]
[1725411803214,9.3978,2339.6,2338.3,0.00641849]
[1725411803405,9.3978,2339.6,2336.6,3.2078]
[1725411803406,3.2078,2338.4,2336.6,3.2078]
[1725411803607,6.19,2337.9,2337.5,1.82]
[1725411803816,3.2078,2337.7,2335.2,3.2078]
[1725411804022,3.2078,2337.7,2332.8,6.19]
[1725411804023,3.2078,2336.0,2335.4,3.2078]
[1725411804315,3.2078,2336.0,2329.9,0.215]
[1725411804316,6.19,2335.5,2332.8,2.99709999]
[1725411804513,3.2078,2333.0,2331.5,3.2078]
[1725411804724,6.19,2333.5,2332.2,1.82]
[1725411804725,0.42865,2333.3,2332.2,1.82]
[1725411805019,0.00641849,2334.4,2330.3,6.19]
[1725411805320,0.00641849,2334.4,2329.6,4.7049]
[1725411805321,3.2078,2337.2,2334.1,3.2078]
[1725411805615,3.2078,2337.2,2332.6,2.1438]
[1725411805616,3.54904,2337.1,2335.2,0.42829]
[1725411805820,0.89943713,2337.1,2335.3,3.2078]
[1725411806116,3.2078,2337.8,2336.2,3.2078]
[1725411806317,0.34124,2337.7,2337.0,3.2078]
[1725411806507,4.7926819,2337.7,2336.0,3.2078]
[1725411806711,3.2078,2337.8,2336.1,3.2078]
[1725411806912,3.2078,2337.8,2335.4,3.2078]
[1725411806913,6.19,2337.1,2335.4,3.2078]
[1725411807213,6.19,2337.1,2331.8,2.1445]
[1725411807214,4.55869805,2337.0,2335.0,3.2078]
[1725411807412,4.4757407,2337.0,2335.9,3.2078]
[1725411807608,4.55869805,2337.1,2335.3,3.2078]
[1725411807811,3.2078,2336.7,2335.4,3.2078]
[1725411808119,4.55869805,2337.0,2335.9,0.42816]
[1725411808308,4.55869805,2337.0,2333.5,9.11795982]
[1725411808309,4.55869805,2337.0,2335.8,3.2078]
[1725411808513,3.2078,2337.6,2336.0,9.11795982]
[1725411808709,4.45542042,2337.0,2336.0,9.11795982]
[1725411809014,3.63559,2337.9,2336.0,9.11795982]
[1725411809015,7.66322042,2337.2,2336.0,0.42813]
[1725411809217,7.66322042,2337.2,2333.2,3.70418]
[1725411809218,3.2078,2337.8,2333.2,7.7509]
[1725411809521,4.58683152,2337.1,2335.7,3.2078]
[1725411809720,4.58683152,2337.3,2335.3,3.2078]
[1725411809927,4.58683152,2337.0,2335.3,3.2078]
[1725411810218,3.2078,2335.4,2334.5,3.2078]
[1725411810413,3.2078,2334.6,2332.8,3.2078]
[1725411810612,1.07122,2334.2,2330.3,1.07295]
[1725411810810,3.2078,2334.3,2332.4,3.2078]
[1725411811013,3.2078,2334.4,2333.0,3.2078]
[1725411811213,6.19,2340.2,2333.3,3.2078]
[1725411811214,3.2078,2334.7,2333.3,3.2078]
[1725411811416,8.03867275,2335.2,2333.5,3.2078]
[1725411811619,8.03867275,2335.2,2332.3,1.07204]
[1725411811620,3.2078,2335.9,2334.5,3.2078]
[1725411811816,40.8,2336.7,2334.1,3.2078]
[1725411811817,3.2078,2335.2,2334.1,3.2078]
[1725411812011,3.2078,2335.8,2334.0,3.2078]
[1725411812212,0.00641862,2334.6,2334.2,0.42847]
[1725411812409,0.00641862,2334.6,2332.3,3.2078]
[1725411812410,3.2078,2334.5,2332.3,3.2078]
[1725411812611,3.2078,2333.7,2332.0,3.2078]
[1725411812814,0.00641862,2334.6,2334.2,0.00641862]
[1725411813013,0.00641862,2334.6,2332.4,8.81019209]
[1725411813014,4.76326217,2333.6,2332.4,12.01799209]
[1725411813222,3.2078,2334.1,2332.4,3.2078]
[1725411813408,3.2078,2334.7,2333.1,3.2078]
[1725411813616,3.2078,2335.4,2334.0,3.2078]
[1725411813815,4.62984207,2334.3,2333.4,3.2078]
[1725411814116,3.2078,2334.2,2333.1,3.2078]
[1725411814420,3.2078,2333.9,2332.3,3.2078]
[1725411814612,0.00641862,2334.1,2332.9,3.2078]
[1725411814817,0.00641862,2334.1,2333.9,3.2078]
[1725411815118,6.19,2336.3,2332.1,3.2078]
[1725411815119,8.10910073,2334.0,2332.1,3.2078]
[1725411815313,8.10910073,2334.0,2329.7,7.6269]
[1725411815314,3.2078,2333.3,2332.2,0.42883]
[1725411815514,6.19,2333.7,2331.4,3.2078]
[1725411815710,5.75970738,2333.9,2330.4,3.2078]
[1725411815711,3.2078,2331.5,2330.4,3.2078]
[1725411815911,0.42928,2329.8,2328.9,3.2078]
[1725411816215,6.19,2331.0,2329.2,3.2078]
[1725411816516,2.14318,2333.4,2328.2,0.4296]
[1725411816517,7.26233,2331.8,2330.7,2.52e-06]
[1725411816717,4.47412239,2330.9,2329.5,3.2078]
[1725411816926,12.19,2331.8,2330.1,3.2078]
[1725411816927,1.14132492,2331.3,2330.1,3.2078]
[1725411817127,1.14132744,2331.8,2331.3,3.2078]
[1725411817425,1.14132744,2331.8,2329.4,2.14672]
[1725411817426,8.58719138,2330.8,2330.7,3.2078]
[1725411817719,8.58719138,2330.8,2329.0,1.07357]
[1725411817720,16.70530769,2330.8,2329.0,3.2078]
[1725411818019,6.05164375,2330.8,2329.9,3.2078]
[1725411818211,8.58719138,2329.3,2329.2,3.2078]
[1725411818416,1.14132744,2330.8,2328.3,3.2078]
[1725411818417,8.58719138,2329.4,2328.3,3.2078]
[1725411818714,6.19,2329.0,2326.2,1.4447]
[1725411818924,6.19,2329.0,2327.3,3.2078]
[1725411818925,3.2078,2328.8,2327.3,3.2078]
[1725411819219,3.2078,2327.4,2326.4,3.2078]
[1725411819423,3.2078,2327.1,2325.5,3.2078]
[1725411819622,3.2078,2327.1,2322.4,2.2863]
[1725411819623,3.2078,2325.6,2323.8,3.2078]
[1725411819818,3.2078,2324.9,2323.3,3.2078]
[1725411820013,3.2078,2324.5,2323.1,9.27277822]
[1725411820223,3.2078,2324.5,2322.8,3.2078]
[1725411820224,6.19,2323.3,2322.4,9.27277822]
[1725411820519,0.43056,2322.9,2322.3,1.82780378]
[1725411820715,3.2078,2322.4,2321.8,0.15987198]
[1725411820914,6.19,2322.5,2319.4,0.14]
[1725411820915,3.2078,2321.6,2319.4,0.14]
[1725411821115,0.43129,2319.0,2318.7,19.04700378]
[1725411821323,3.2078,2320.7,2320.6,0.43097]
[1725411821525,3.2078,2320.7,2318.8,0.63679525]
[1725411821526,0.43099,2320.6,2319.5,26.41050465]
[1725411821726,6.19,2319.9,2317.1,9.00430087]
[1725411821929,3.2078,2317.8,2317.0,5.0]
[1725411822227,3.2078,2317.1,2315.8,0.3068224]
[1725411822520,3.2078,2316.0,2315.8,0.46697179]
[1725411822711,3.2078,2316.0,2313.1,3.2078]
[1725411822911,11.24590663,2317.0,2312.2,0.1]
[1725411822912,4.3232,2313.1,2312.2,0.1]
[1725411823116,2.34728115,2312.9,2312.0,0.72286476]
[1725411823324,3.2078,2312.1,2310.8,30.09810475]
[1725411823513,4.51315748,2312.8,2310.9,3.2078]
[1725411823718,3.2078,2314.7,2312.1,3.2078]
[1725411824029,0.21428755,2316.7,2310.1,4.3264]
[1725411824030,3.2078,2317.9,2314.5,3.2078]
[1725411824320,2.3029,2324.5,2312.4,0.00647696]
[1725411824321,3.2078,2321.3,2317.8,3.2078]
[1725411824514,4.94921609,2320.5,2319.1,3.2078]
[1725411824714,0.21963829,2324.4,2319.1,3.2078]
[1725411824715,40.8,2323.9,2319.3,1.07805]
[1725411825124,4.94921609,2321.5,2320.4,3.2078]
[1725411825419,0.19512925,2322.1,2319.3,11.45221257]
[1725411825420,0.00646064,2321.8,2321.7,1.8747264]
[1725411825626,2.1059,2323.6,2321.7,0.05718501]
[1725411825923,0.214,2334.9,2321.7,0.05718501]
[1725411825924,6.19,2327.1,2322.5,6.19]
[1725411826127,3.74319242,2326.2,2326.0,0.42998]
[1725411826322,2.21182971,2327.7,2326.1,4.2992]
[1725411826524,3.2078,2330.2,2327.4,3.2078]
[1725411826816,3.2078,2330.2,2325.2,6.19]
[1725411826817,4.61729928,2327.6,2324.3,3.2078]
[1725411827023,3.2078,2325.4,2322.2,0.115]
[1725411827218,3.2078,2325.0,2323.3,3.2078]
[1725411827420,3.2078,2324.3,2322.7,6.4156]
[1725411827627,6.19,2323.8,2322.6,3.2078]
[1725411827930,6.19,2323.8,2320.5,0.4304]
[1725411827931,0.15737877,2324.2,2323.7,3.2078]
[1725411828117,6.19,2325.5,2323.7,3.2078]
[1725411828118,6.19,2326.4,2324.5,2.7817931]
[1725411828321,0.16359708,2329.3,2323.3,0.00644302]
[1725411828322,0.26803533,2324.1,2323.3,0.00644302]
[1725411828626,6.19,2324.6,2323.3,0.00644302]